fUST/lending_fUST_20250715
["ID","MTS","AMOUNT","RATE_DAILY","PERIOD"]
[372100872,1752520255141,-460.0,0.00016986,2]
[372100873,1752520255152,-460.0,0.00016986,2]
[372100874,1752520255165,-460.0,0.00016986,2]
[372100875,1752520255174,-460.0,0.00016986,2]
[372100876,1752520255183,-460.0,0.00016986,2]
[372100877,1752520255193,-460.0,0.00016986,2]
[372100878,1752520255202,-151.0,0.00016986,2]
[372100879,1752520255212,-151.0,0.00016986,2]
[372100880,1752520255221,-460.0,0.00016986,2]
[372100881,1752520255231,-332.61943307,0.00016986,2]
[372100882,1752520255241,-278.12407717,0.00016986,2]
[372100883,1752520255250,-460.0,0.00016986,2]
[372100884,1752520255261,-724.35,0.00016986,2]
[372100885,1752520255271,-460.0,0.00016986,2]
[372100886,1752520255281,-460.0,0.00016986,2]
[372100887,1752520255291,-460.0,0.00016986,2]
[372100888,1752520255301,-1457.7,0.00016986,2]
[372100889,1752520255311,-627.51,0.00016986,2]
[372100890,1752520255325,-794.94,0.00016986,2]
[372100891,1752520255335,-460.0,0.00016986,2]
[372100892,1752520255344,-460.0,0.00016986,2]
[372100893,1752520255353,-730.53,0.00016986,2]
[372100894,1752520255363,-460.0,0.00016986,2]
[372100895,1752520255373,-460.0,0.00016986,2]
[372100896,1752520255382,-460.0,0.00016986,2]
[372100897,1752520255392,-460.0,0.00016986,2]
[372100898,1752520255401,-460.0,0.00016986,2]
[372100899,1752520255410,-460.0,0.00016986,2]
[372100900,1752520255420,-485.22,0.00016986,2]
[372100901,1752520255429,-460.0,0.00016986,2]
[372100902,1752520255439,-460.0,0.00016986,2]
[372100903,1752520255448,-460.0,0.00016986,2]
[372100904,1752520255458,-498.10045022,0.00016986,2]
[372100905,1752520255467,-460.0,0.00016986,2]
[372100906,1752520255477,-460.0,0.00016986,2]
[372100907,1752520255488,-460.0,0.00016986,2]
[372100908,1752520255498,-460.0,0.00016986,2]
[372100909,1752520255510,-460.0,0.00016986,2]
[372100910,1752520255520,-460.0,0.00016986,2]
[372100911,1752520255529,-585.64873978,0.00016986,2]
[372100912,1752520255539,-460.0,0.00016986,2]
[372100913,1752520255549,-460.0,0.00016986,2]
[372100914,1752520255559,-460.0,0.00016986,2]
[372100915,1752520255570,-460.0,0.00016986,2]
[372100916,1752520255580,-460.0,0.00016986,2]
[372100917,1752520255589,-1500.19,0.00016986,2]
[372100918,1752520255599,-460.0,0.00016986,2]
[372100919,1752520255608,-460.0,0.00016986,2]
[372100920,1752520255618,-460.0,0.00016986,2]
[372100921,1752520255629,-460.0,0.00016986,2]
[372100922,1752520255639,-460.0,0.00016986,2]
[372100923,1752520255650,-460.0,0.00016986,2]
[372100924,1752520255659,-460.0,0.00016986,2]
[372100925,1752520255669,-460.0,0.00016986,2]
[372100926,1752520255678,-605.43240887,0.00016986,2]
[372100927,1752520255688,-460.0,0.00016986,2]
[372100928,1752520255697,-1537.56,0.00016986,2]
[372100929,1752520255707,-460.0,0.00016986,2]
[372100930,1752520255717,-814.88,0.00016986,2]
[372100931,1752520255727,-460.0,0.00016986,2]
[372100932,1752520255737,-460.0,0.00016986,2]
[372100933,1752520255747,-460.0,0.00016986,2]
[372100934,1752520255756,-460.0,0.00016986,2]
[372100935,1752520255765,-460.0,0.00016986,2]
[372100936,1752520255775,-1084.02,0.00016986,2]
[372100937,1752520255784,-460.0,0.00016986,2]
[372100938,1752520255794,-460.0,0.00016986,2]
[372100939,1752520255803,-460.0,0.00016986,2]
[372100940,1752520255814,-460.0,0.00016986,2]
[372100941,1752520255826,-477.27,0.00016986,2]
[372100942,1752520255835,-607.81,0.00016986,2]
[372100943,1752520255845,-4635.59,0.00016986,2]
[372100944,1752520255854,-547.24862779,0.00016986,2]
[372100945,1752520255864,-460.0,0.00016986,2]
[372100946,1752520255873,-460.0,0.00016986,2]
[372100947,1752520255883,-460.0,0.00016986,2]
[372100948,1752520255892,-460.0,0.00016986,2]
[372100949,1752520255902,-460.0,0.00016986,2]
[372100950,1752520255911,-460.0,0.00016986,2]
[372100951,1752520255920,-460.0,0.00016986,2]
[372100952,1752520255930,-460.0,0.00016986,2]
[372100953,1752520255939,-460.0,0.00016986,2]
[372100954,1752520255949,-460.0,0.00016986,2]
[372100955,1752520255960,-460.0,0.00016986,2]
[372100956,1752520255970,-460.0,0.00016986,2]
[372100957,1752520255979,-460.0,0.00016986,2]
[372100958,1752520255989,-460.0,0.00016986,2]
[372100959,1752520255999,-460.0,0.00016986,2]
[372100960,1752520256008,-151.0,0.00016986,2]
[372100961,1752520256018,-645.25,0.00016986,2]
[372100962,1752520256027,-500.0,0.00016986,2]
[372100963,1752520256037,-1000.0,0.00017,2]
[372100964,1752520256047,-1148.69096764,0.00017059,2]
[372100965,1752520256056,-155.0,0.00017134,2]
[372100966,1752520256066,-151.0,0.00017158,2]
[372100967,1752520256077,-6459.89093816,0.00017189,2]
[372100968,1752520256087,-1482.94796019,0.00017215,2]
[372100969,1752520256096,-212.847825,0.00017253,2]
[372100970,1752520256107,-212.847825,0.00017253,2]
[372100971,1752520256117,-151.0,0.00017258,2]
[372100972,1752520256128,-151.0,0.00017258,2]
[372100973,1752520256139,-151.0,0.00017258,2]
[372100974,1752520256150,-151.0,0.00017258,2]
[372100975,1752520256164,-151.0,0.00017258,2]
[372100976,1752520256174,-151.0,0.00017258,2]
[372100977,1752520256184,-151.0,0.00017259,2]
[372100978,1752520256194,-151.0,0.00017259,2]
[372100979,1752520256207,-151.875815,0.00017259,2]
[372100980,1752520256216,-151.090708,0.0001726,2]
[372100981,1752520256226,-298.02569367,0.0001726,2]
[372100982,1752520256236,-460.0,0.0001726,2]
[372100983,1752520256247,-384.83249939,0.0001726,2]
[372100984,1752520256257,-460.0,0.0001726,2]
[372100985,1752520256267,-151.0,0.0001726,2]
[372100986,1752520256276,-460.0,0.0001726,2]
[372100987,1752520256286,-460.0,0.0001726,2]
[372100988,1752520256296,-460.0,0.0001726,2]
[372100989,1752520256305,-460.0,0.0001726,2]
[372100990,1752520256315,-460.0,0.0001726,2]
[372100991,1752520256327,-460.0,0.0001726,2]
[372100992,1752520256336,-460.0,0.0001726,2]
[372100993,1752520256346,-460.0,0.0001726,2]
[372100994,1752520256355,-460.0,0.0001726,2]
[372100995,1752520256367,-460.0,0.0001726,2]
[372100996,1752520256376,-523.392471,0.0001726,2]
[372100997,1752520256386,-523.392471,0.0001726,2]
[372100998,1752520256395,-453.663379,0.0001726,2]
[372100999,1752520256405,-453.663379,0.0001726,2]
[372101000,1752520256416,-460.0,0.0001726,2]
[372101001,1752520256425,-460.0,0.0001726,2]
[372101002,1752520256437,-460.0,0.0001726,2]
[372101003,1752520256447,-548.70595581,0.0001726,2]
[372101004,1752520256457,-460.0,0.0001726,2]
[372101005,1752520256467,-151.0,0.0001726,2]
[372101006,1752520256478,-232.23016428,0.0001726,2]
[372101007,1752520256488,-273.33968387,0.0001726,2]
[372101008,1752520256498,-393.87297624,0.0001726,2]
[372101009,1752520256510,-203.265745,0.0001726,2]
[372101010,1752520256521,-460.0,0.0001726,2]
[372101011,1752520256532,-203.265745,0.0001726,2]
[372101012,1752520256543,-460.0,0.0001726,2]
[372101013,1752520256554,-460.0,0.0001726,2]
[372101014,1752520256563,-590.11139795,0.0001726,2]
[372101015,1752520256576,-460.0,0.0001726,2]
[372101016,1752520256586,-244.309742,0.0001726,2]
[372101017,1752520256596,-460.0,0.0001726,2]
[372101018,1752520256606,-244.309742,0.0001726,2]
[372101019,1752520256615,-465.0975003,0.0001726,2]
[372101020,1752520256625,-460.0,0.0001726,2]
[372101021,1752520256634,-460.0,0.0001726,2]
[372101022,1752520256644,-460.0,0.0001726,2]
[372101023,1752520256654,-460.0,0.0001726,2]
[372101024,1752520256664,-460.0,0.0001726,2]
[372101025,1752520256673,-460.0,0.0001726,2]
[372101026,1752520256683,-460.0,0.0001726,2]
[372101027,1752520256692,-460.0,0.0001726,2]
[372101028,1752520256703,-444.14886663,0.0001726,2]
[372101029,1752520256712,-460.0,0.0001726,2]
[372101030,1752520256722,-506.16053034,0.0001726,2]
[372101031,1752520256732,-460.0,0.0001726,2]
[372101032,1752520256741,-460.0,0.0001726,2]
[372101033,1752520256751,-151.0,0.0001726,2]
[372101034,1752520256760,-460.0,0.0001726,2]
[372101035,1752520256769,-460.0,0.0001726,2]
[372101036,1752520256778,-460.0,0.0001726,2]
[372101037,1752520256789,-500.0,0.0001726,2]
[372101038,1752520256799,-151.0,0.0001726,2]
[372101039,1752520256808,-460.0,0.0001726,2]
[372101040,1752520256821,-388.67464359,0.0001726,2]
[372101041,1752520256831,-460.0,0.0001726,2]
[372101042,1752520256841,-460.0,0.0001726,2]
[372101043,1752520256850,-182.08783053,0.0001726,2]
[372101044,1752520256860,-460.0,0.0001726,2]
[372101045,1752520256869,-460.0,0.0001726,2]
[372101046,1752520256879,-460.0,0.0001726,2]
[372101047,1752520256889,-460.0,0.0001726,2]
[372101048,1752520256898,-460.0,0.0001726,2]
[372101049,1752520256908,-460.0,0.0001726,2]
[372101050,1752520256917,-460.0,0.0001726,2]
[372101051,1752520256927,-460.0,0.0001726,2]
[372101052,1752520256937,-498.93,0.0001726,2]
[372101053,1752520256946,-460.0,0.0001726,2]
[372101054,1752520256955,-803.18,0.0001726,2]
[372101055,1752520256965,-460.0,0.0001726,2]
[372101056,1752520256974,-460.0,0.0001726,2]
[372101057,1752520256984,-516.25,0.0001726,2]
[372101058,1752520256993,-460.0,0.0001726,2]
[372101059,1752520257002,-460.0,0.0001726,2]
[372101060,1752520257011,-191.2645485,0.0001726,2]
[372101061,1752520257021,-460.0,0.0001726,2]
[372101062,1752520257030,-533.59,0.0001726,2]
[372101063,1752520257040,-460.0,0.0001726,2]
[372101064,1752520257049,-460.0,0.0001726,2]
[372101065,1752520257058,-460.0,0.0001726,2]
[372101066,1752520257070,-460.0,0.0001726,2]
[372101067,1752520257079,-460.0,0.0001726,2]
[372101068,1752520257088,-460.0,0.0001726,2]
[372101069,1752520257098,-591.18,0.0001726,2]
[372101070,1752520257107,-460.0,0.0001726,2]
[372101071,1752520257116,-151.0,0.0001726,2]
[372101072,1752520257126,-791.69,0.0001726,2]
[372101073,1752520257135,-460.0,0.0001726,2]
[372101074,1752520257271,-460.0,0.0001726,2]
[372101075,1752520257281,-460.0,0.0001726,2]
[372101076,1752520257290,-151.0,0.0001726,2]
[372101077,1752520257300,-460.0,0.0001726,2]
[372101078,1752520257310,-460.0,0.0001726,2]
[372101079,1752520257320,-460.0,0.0001726,2]
[372101080,1752520257330,-460.0,0.0001726,2]
[372101081,1752520257339,-699.42,0.0001726,2]
[372101082,1752520257349,-460.0,0.0001726,2]
[372101083,1752520257358,-460.0,0.0001726,2]
[372101084,1752520257367,-460.0,0.0001726,2]
[372101085,1752520257377,-277.162374,0.0001726,2]
[372101086,1752520257387,-277.162374,0.0001726,2]
[372101087,1752520257396,-460.0,0.0001726,2]
[372101088,1752520257406,-460.0,0.0001726,2]
[372101089,1752520257415,-460.0,0.0001726,2]
[372101090,1752520257425,-460.0,0.0001726,2]
[372101091,1752520257435,-151.0,0.0001726,2]
[372101092,1752520257444,-1526.91,0.0001726,2]
[372101093,1752520257454,-460.0,0.0001726,2]
[372101094,1752520257463,-435.64467231,0.0001726,2]
[372101095,1752520257473,-460.0,0.0001726,2]
[372101096,1752520257486,-777.08,0.0001726,2]
[372101097,1752520257496,-721.29,0.0001726,2]
[372101098,1752520257505,-862.14,0.0001726,2]
[372101099,1752520257514,-460.0,0.0001726,2]
[372101100,1752520257523,-460.0,0.0001726,2]
[372101101,1752520257533,-460.0,0.0001726,2]
[372101102,1752520257542,-957.36,0.0001726,2]
[372101103,1752520257552,-191.21,0.0001726,2]
[372101104,1752520257563,-460.0,0.0001726,2]
[372101105,1752520257574,-4466.74,0.0001726,2]
[372101106,1752520257583,-474.16,0.0001726,2]
[372101107,1752520257593,-460.0,0.0001726,2]
[372101108,1752520257603,-460.0,0.0001726,2]
[372101109,1752520257612,-460.0,0.0001726,2]
[372101110,1752520257622,-214.669876,0.0001726,2]
[372101111,1752520257631,-460.0,0.0001726,2]
[372101112,1752520257641,-460.0,0.0001726,2]
[372101113,1752520257651,-214.669876,0.0001726,2]
[372101114,1752520257662,-460.0,0.0001726,2]
[372101115,1752520257672,-6194.88,0.0001726,2]
[372101116,1752520257682,-460.0,0.0001726,2]
[372101117,1752520257692,-460.0,0.0001726,2]
[372101118,1752520257702,-589.98,0.0001726,2]
[372101119,1752520257712,-460.0,0.0001726,2]
[372101120,1752520257722,-460.0,0.0001726,2]
[372101121,1752520257735,-493.17,0.0001726,2]
[372101122,1752520257745,-460.0,0.0001726,2]
[372101123,1752520257755,-460.0,0.0001726,2]
[372101124,1752520257766,-460.0,0.0001726,2]
[372101125,1752520257776,-460.0,0.0001726,2]
[372101126,1752520257786,-460.0,0.0001726,2]
[372101127,1752520257795,-460.0,0.0001726,2]
[372101128,1752520257806,-569.09,0.0001726,2]
[372101129,1752520257816,-2614.87,0.0001726,2]
[372101130,1752520257828,-229.80287337,0.0001726,2]
[372101131,1752520257837,-460.0,0.0001726,2]
[372101132,1752520257847,-460.0,0.0001726,2]
[372101133,1752520257857,-1051.68,0.0001726,2]
[372101134,1752520257866,-994.12,0.0001726,2]
[372101135,1752520257876,-460.0,0.0001726,2]
[372101136,1752520257886,-1792.12,0.0001726,2]
[372101137,1752520257895,-460.0,0.0001726,2]
[372101138,1752520257905,-460.0,0.0001726,2]
[372101139,1752520257915,-189.35343318,0.0001726,2]
[372101140,1752520257925,-460.0,0.0001726,2]
[372101141,1752520257934,-151.0,0.0001726,2]
[372101142,1752520257943,-151.0,0.0001726,2]
[372101143,1752520257953,-724.35,0.0001726,2]
[372101144,1752520257962,-460.0,0.0001726,2]
[372101145,1752520257972,-460.0,0.0001726,2]
[372101146,1752520257981,-460.0,0.0001726,2]
[372101147,1752520257991,-500.0,0.0001726,2]
[372101148,1752520258001,-1457.7,0.0001726,2]
[372101149,1752520258010,-627.51,0.0001726,2]
[372101150,1752520258021,-794.94,0.0001726,2]
[372101151,1752520258030,-460.0,0.0001726,2]
[372101152,1752520258040,-730.53,0.0001726,2]
[372101153,1752520258051,-460.0,0.0001726,2]
[372101154,1752520258062,-460.0,0.0001726,2]
[372101155,1752520258073,-490.63122503,0.0001726,2]
[372101156,1752520258083,-460.0,0.0001726,2]
[372101157,1752520258092,-460.0,0.0001726,2]
[372101158,1752520258102,-460.0,0.0001726,2]
[372101159,1752520258112,-485.22,0.0001726,2]
[372101160,1752520258122,-460.0,0.0001726,2]
[372101161,1752520258133,-460.0,0.0001726,2]
[372101162,1752520258142,-460.0,0.0001726,2]
[372101163,1752520258153,-541.96,0.0001726,2]
[372101164,1752520258169,-460.0,0.0001726,2]
[372101165,1752520258179,-460.0,0.0001726,2]
[372101166,1752520258192,-460.0,0.0001726,2]
[372101167,1752520258203,-460.0,0.0001726,2]
[372101168,1752520258213,-460.0,0.0001726,2]
[372101169,1752520258223,-460.0,0.0001726,2]
[372101170,1752520258234,-460.0,0.0001726,2]
[372101171,1752520258244,-460.0,0.0001726,2]
[372101172,1752520258254,-1500.19,0.0001726,2]
[372101173,1752520258264,-498.91554705,0.0001726,2]
[372101174,1752520258275,-460.0,0.0001726,2]
[372101175,1752520258285,-593.68401713,0.0001726,2]
[372101176,1752520258295,-460.0,0.0001726,2]
[372101177,1752520258304,-460.0,0.0001726,2]
[372101178,1752520258315,-571.65461872,0.0001726,2]
[372101179,1752520258328,-460.0,0.0001726,2]
[372101180,1752520258337,-460.0,0.0001726,2]
[372101181,1752520258347,-1537.56,0.0001726,2]
[372101182,1752520258357,-460.0,0.0001726,2]
[372101183,1752520258367,-814.88,0.0001726,2]
[372101184,1752520258377,-460.0,0.0001726,2]
[372101185,1752520258386,-1084.02,0.0001726,2]
[372101186,1752520258396,-460.0,0.0001726,2]
[372101187,1752520258405,-460.0,0.0001726,2]
[372101188,1752520258415,-460.0,0.0001726,2]
[372101189,1752520258425,-477.27,0.0001726,2]
[372101190,1752520258435,-4635.59,0.0001726,2]
[372101191,1752520258444,-460.0,0.0001726,2]
[372101192,1752520258454,-460.0,0.0001726,2]
[372101193,1752520258463,-460.0,0.0001726,2]
[372101194,1752520258473,-460.0,0.0001726,2]
[372101195,1752520258484,-466.72916978,0.0001726,2]
[372101196,1752520258493,-460.0,0.0001726,2]
[372101197,1752520258503,-460.0,0.0001726,2]
[372101198,1752520258513,-460.0,0.0001726,2]
[372101199,1752520258523,-460.0,0.0001726,2]
[372101200,1752520258533,-460.0,0.0001726,2]
[372101201,1752520258543,-405.30714718,0.0001726,2]
[372101202,1752520258553,-500.0,0.00017273,2]
[372101203,1752520258563,-500.0,0.00017273,2]
[372101204,1752520258574,-500.0,0.00017273,2]
[372101205,1752520258583,-500.0,0.00017273,2]
[372101206,1752520258593,-500.0,0.00017321,2]
[372101207,1752520258604,-500.0,0.00017321,2]
[372101208,1752520258614,-543.18,0.00017398,3]
[372101209,1752520258623,-1148.69096764,0.00017434,2]
[372101210,1752520258633,-1000.0,0.000175,2]
[372101211,1752520258642,-306.0,0.00017507,2]
[372101212,1752520258651,-1240.0,0.00017528,2]
[372101213,1752520258662,-151.0,0.00017531,2]
[372101214,1752520258672,-151.0,0.00017531,2]
[372101215,1752520258682,-244.309742,0.00017532,2]
[372101216,1752520258693,-244.309742,0.00017532,2]
[372101217,1752520258703,-244.309742,0.00017532,2]
[372101218,1752520258713,-244.309742,0.00017532,2]
[372101219,1752520258723,-151.0,0.00017532,2]
[372101220,1752520258733,-151.0,0.00017532,2]
[372101221,1752520258743,-151.0,0.00017532,2]
[372101222,1752520258754,-151.0,0.00017532,2]
[372101223,1752520258764,-420.0,0.00017533,2]
[372101224,1752520258773,-212.847825,0.00017534,2]
[372101225,1752520258783,-212.847825,0.00017534,2]
[372101226,1752520258793,-460.0,0.00017534,2]
[372101227,1752520258803,-481.86184393,0.00017534,2]
[372101228,1752520258814,-151.0,0.00017534,2]
[372101229,1752520258826,-460.0,0.00017534,2]
[372101230,1752520258835,-521.56790027,0.00017534,2]
[372101231,1752520258845,-460.0,0.00017534,2]
[372101232,1752520258855,-460.0,0.00017534,2]
[372101233,1752520258865,-460.0,0.00017534,2]
[372101234,1752520258875,-151.0,0.00017534,2]
[372101235,1752520258884,-460.0,0.00017534,2]
[372101236,1752520258895,-556.16,0.00017534,2]
[372101237,1752520258904,-460.0,0.00017534,2]
[372101238,1752520258915,-460.0,0.00017534,2]
[372101239,1752520258925,-460.0,0.00017534,2]
[372101240,1752520258935,-460.0,0.00017534,2]
[372101241,1752520258945,-460.0,0.00017534,2]
[372101242,1752520258955,-460.0,0.00017534,2]
[372101243,1752520258965,-460.0,0.00017534,2]
[372101244,1752520258975,-460.0,0.00017534,2]
[372101245,1752520258986,-460.0,0.00017534,2]
[372101246,1752520258995,-407.23997002,0.00017534,2]
[372101247,1752520259005,-460.0,0.00017534,2]
[372101248,1752520259015,-460.0,0.00017534,2]
[372101249,1752520259024,-460.0,0.00017534,2]
[372101250,1752520259034,-460.0,0.00017534,2]
[372101251,1752520259043,-460.0,0.00017534,2]
[372101252,1752520259053,-460.0,0.00017534,2]
[372101253,1752520259063,-500.0,0.00017534,2]
[372101254,1752520259074,-460.0,0.00017534,2]
[372101255,1752520259085,-460.0,0.00017534,2]
[372101256,1752520259101,-460.0,0.00017534,2]
[372101257,1752520259117,-498.93,0.00017534,2]
[372101258,1752520259128,-803.18,0.00017534,2]
[372101259,1752520259139,-516.25,0.00017534,2]
[372101260,1752520259151,-460.0,0.00017534,2]
[372101261,1752520259167,-460.0,0.00017534,2]
[372101262,1752520259178,-533.59,0.00017534,2]
[372101263,1752520259189,-460.0,0.00017534,2]
[372101264,1752520259198,-460.0,0.00017534,2]
[372101265,1752520259209,-460.0,0.00017534,2]
[372101266,1752520259219,-460.0,0.00017534,2]
[372101267,1752520259230,-460.0,0.00017534,2]
[372101268,1752520259243,-791.69,0.00017534,2]
[372101269,1752520259253,-460.0,0.00017534,2]
[372101270,1752520259263,-460.0,0.00017534,2]
[372101271,1752520259273,-460.0,0.00017534,2]
[372101272,1752520259283,-699.42,0.00017534,2]
[372101273,1752520259293,-523.68,0.00017534,2]
[372101274,1752520259304,-460.0,0.00017534,2]
[372101275,1752520259314,-460.0,0.00017534,2]
[372101276,1752520259325,-460.0,0.00017534,2]
[372101277,1752520259336,-460.0,0.00017534,2]
[372101278,1752520259346,-151.0,0.00017534,2]
[372101279,1752520259357,-1526.91,0.00017534,2]
[372101280,1752520259369,-460.0,0.00017534,2]
[372101281,1752520259379,-460.0,0.00017534,2]
[372101282,1752520259390,-777.08,0.00017534,2]
[372101283,1752520259401,-721.29,0.00017534,2]
[372101284,1752520259412,-862.14,0.00017534,2]
[372101285,1752520259422,-460.0,0.00017534,2]
[372101286,1752520259432,-269.37691507,0.00017534,2]
[372101287,1752520259442,-520.33762507,0.00017534,2]
[372101288,1752520259452,-957.36,0.00017534,2]
[372101289,1752520259463,-460.0,0.00017534,2]
[372101290,1752520259473,-4466.74,0.00017534,2]
[372101291,1752520259483,-474.16,0.00017534,2]
[372101292,1752520259493,-520.12,0.00017534,2]
[372101293,1752520259503,-460.0,0.00017534,2]
[372101294,1752520259514,-576.76099022,0.00017534,2]
[372101295,1752520259524,-195.13794482,0.00017534,2]
[372101296,1752520259534,-460.0,0.00017534,2]
[372101297,1752520259544,-6194.88,0.00017534,2]
[372101298,1752520259553,-460.0,0.00017534,2]
[372101299,1752520259563,-493.17,0.00017534,2]
[372101300,1752520259572,-460.0,0.00017534,2]
[372101301,1752520259582,-460.0,0.00017534,2]
[372101302,1752520259591,-460.0,0.00017534,2]
[372101303,1752520259601,-569.09,0.00017534,2]
[372101304,1752520259610,-2614.87,0.00017534,2]
[372101305,1752520259620,-460.0,0.00017534,2]
[372101306,1752520259630,-460.0,0.00017534,2]
[372101307,1752520259639,-1051.68,0.00017534,2]
[372101308,1752520259649,-994.12,0.00017534,2]
[372101309,1752520259660,-460.0,0.00017534,2]
[372101310,1752520259669,-1792.12,0.00017534,2]
[372101311,1752520259679,-460.0,0.00017534,2]
[372101312,1752520259689,-151.0,0.00017534,2]
[372101313,1752520259698,-211.666789,0.00017534,2]
[372101314,1752520259707,-460.0,0.00017534,2]
[372101315,1752520259717,-724.35,0.00017534,2]
[372101316,1752520259727,-460.0,0.00017534,2]
[372101317,1752520259736,-1457.7,0.00017534,2]
[372101318,1752520259746,-627.51,0.00017534,2]
[372101319,1752520259756,-794.94,0.00017534,2]
[372101320,1752520259765,-460.0,0.00017534,2]
[372101321,1752520259775,-730.53,0.00017534,2]
[372101322,1752520259785,-460.0,0.00017534,2]
[372101323,1752520259795,-460.0,0.00017534,2]
[372101324,1752520259804,-460.0,0.00017534,2]
[372101325,1752520259814,-485.22,0.00017534,2]
[372101326,1752520259965,-460.0,0.00017534,2]
[372101327,1752520259987,-460.0,0.00017534,2]
[372101328,1752520259997,-460.0,0.00017534,2]
[372101329,1752520260007,-460.0,0.00017534,2]
[372101330,1752520260016,-460.0,0.00017534,2]
[372101331,1752520260025,-460.0,0.00017534,2]
[372101332,1752520260035,-460.0,0.00017534,2]
[372101333,1752520260045,-460.0,0.00017534,2]
[372101334,1752520260055,-1500.19,0.00017534,2]
[372101335,1752520260065,-460.0,0.00017534,2]
[372101336,1752520260075,-460.0,0.00017534,2]
[372101337,1752520260085,-460.0,0.00017534,2]
[372101338,1752520260094,-1537.56,0.00017534,2]
[372101339,1752520260103,-460.0,0.00017534,2]
[372101340,1752520260112,-814.88,0.00017534,2]
[372101341,1752520260125,-389.58274733,0.00017534,2]
[372101342,1752520260134,-1084.02,0.00017534,2]
[372101343,1752520260144,-460.0,0.00017534,2]
[372101344,1752520260153,-477.27,0.00017534,2]
[372101345,1752520260166,-4635.59,0.00017534,2]
[372101346,1752520260176,-460.0,0.00017534,2]
[372101347,1752520260185,-460.0,0.00017534,2]
[372101348,1752520260194,-460.0,0.00017534,2]
[372101349,1752520260205,-460.0,0.00017534,2]
[372101350,1752520260214,-460.0,0.00017534,2]
[372101351,1752520260224,-460.0,0.00017534,2]
[372101352,1752520260235,-460.0,0.00017534,2]
[372101353,1752520260245,-151.0,0.00017534,2]
[372101354,1752520260254,-500.0,0.00017573,2]
[372101355,1752520260264,-501.04320037,0.00017573,2]
[372101356,1752520260273,-500.0,0.0001764,2]
[372101357,1752520260283,-500.0,0.0001764,2]
[372101358,1752520260293,-500.0,0.0001764,2]
[372101359,1752520260303,-500.0,0.0001764,2]
[372101360,1752520260313,-500.0,0.0001764,2]
[372101361,1752520260326,-500.0,0.0001764,2]
[372101362,1752520260335,-500.0,0.0001764,2]
[372101363,1752520260345,-500.0,0.0001764,2]
[372101364,1752520260355,-580.93774563,0.0001764,2]
[372101365,1752520260365,-638.0285363,0.0001764,2]
[372101366,1752520260374,-500.0,0.0001764,2]
[372101367,1752520260384,-500.0,0.0001764,2]
[372101368,1752520260394,-500.0,0.0001764,2]
[372101369,1752520260403,-151.0,0.00017708,2]
[372101370,1752520260413,-151.0,0.00017708,2]
[372101371,1752520260423,-612.417574,0.0001772,2]